bitfinex/quotes_ETHUSD_20260203
["timestamp","ask_amount","ask_price","bid_price","bid_amount"]
[1770132802781,1.08038029,2314.0,2311.9,0.02158708]
[1770132803075,1.07996025,2314.9,2313.7,0.02158708]
[1770132803257,1.07972704,2315.4,2314.0,0.02158708]
[1770132803464,1.07972704,2315.4,2313.8,0.02158708]
[1770132803792,7.71856074,2314.5,2312.3,0.02158708]
[1770132804066,0.1024,2314.6,2312.3,0.02158708]
[1770132804265,0.02158708,2314.3,2312.1,0.02158708]
[1770132804470,0.12398708,2313.8,2311.1,0.02158708]
[1770132804677,7.71856074,2313.9,2312.2,0.02158708]
[1770132804828,1.08052037,2313.7,2312.4,0.02158708]
[1770132805168,1.08052037,2313.7,2312.3,0.02158708]
[1770132805367,1.07963378,2315.6,2314.0,0.02158708]
[1770132805574,1.07963378,2315.6,2313.8,0.02158708]
[1770132805774,1.07963378,2315.6,2314.0,0.02158708]
[1770132805931,20.29344779,2315.4,2312.4,0.02158708]
[1770132806279,0.1024,2314.7,2312.8,0.02158708]
[1770132806479,12.59647413,2314.0,2311.7,0.02158708]
[1770132806632,0.1024,2313.5,2311.5,0.02158708]
[1770132806969,7.74014782,2312.8,2310.4,0.02158708]
[1770132807261,8.79922123,2313.4,2311.0,0.02158708]
[1770132807431,0.12398708,2313.3,2311.1,0.02158708]
[1770132807776,0.1024,2313.3,2311.3,0.02158708]
[1770132807991,0.1024,2313.3,2310.2,0.02158708]
[1770132807992,7.71856074,2312.8,2310.2,0.02158708]
[1770132808186,7.71856074,2312.2,2310.2,0.02158708]
[1770132808489,7.71856074,2312.2,2310.7,0.02158708]
[1770132808490,0.1024,2312.0,2310.7,0.02158708]
[1770132808686,0.1024,2312.0,2310.2,0.02158708]
[1770132808861,1.08136165,2311.9,2310.4,0.02158708]
[1770132809065,7.82096074,2311.6,2310.0,0.02158708]
[1770132809395,7.82096074,2311.6,2309.3,0.02158708]
[1770132809396,0.1024,2310.9,2309.3,0.02158708]
[1770132809687,0.907,2310.8,2309.4,0.02158708]
[1770132809985,0.907,2311.5,2310.0,0.02158708]
[1770132810181,0.1024,2311.4,2310.0,0.02158708]
[1770132810394,0.1024,2311.4,2308.9,0.02158708]
[1770132810685,0.1024,2311.4,2310.0,0.02158708]
[1770132810886,1.08164236,2311.3,2310.0,0.02158708]
[1770132811188,0.907,2311.6,2310.3,0.02158708]
[1770132811392,0.1024,2311.7,2310.3,0.02158708]
[1770132811582,1.0094,2311.7,2310.1,0.02158708]
[1770132811886,1.0094,2311.7,2310.1,0.56920209]
[1770132812274,8.72796074,2311.7,2309.8,1.08231377]
[1770132812581,0.02158708,2311.5,2309.4,0.02158708]
[1770132812784,1.08150198,2311.6,2310.5,0.02158708]
[1770132812994,1.08150198,2311.6,2310.4,0.02158708]
[1770132812995,1.08146758,2311.7,2310.1,0.02158708]
[1770132813379,0.02158708,2311.4,2309.2,0.02158708]
[1770132813579,0.1024,2311.3,2309.6,0.02158708]
[1770132813780,0.907,2311.4,2309.7,0.02158708]
[1770132814114,1.08146758,2311.7,2310.2,4.32862182]
[1770132814254,1.08146758,2311.7,2310.3,1.08210847]
[1770132814461,1.08133616,2312.0,2310.2,0.02158708]
[1770132814688,1.98824989,2312.2,2310.6,0.02158708]
[1770132814876,0.1024,2312.1,2310.3,0.02158708]
[1770132815091,0.02158708,2311.2,2309.2,1.10419733]
[1770132815255,0.907,2311.1,2309.5,1.10407077]
[1770132815592,0.12398708,2311.7,2309.8,1.08231626]
[1770132815759,0.907,2311.3,2309.4,0.02158708]
[1770132815960,0.1024,2311.2,2309.3,0.02158708]
[1770132816262,0.1024,2311.2,2309.5,0.02158708]
[1770132816564,0.02158708,2311.6,2309.8,1.08231906]
[1770132816767,0.02158708,2311.3,2309.6,4.3296163]
[1770132816981,4.32640603,2311.4,2309.7,1.51533596]
[1770132817193,0.1024,2311.3,2309.7,1.08238438]
[1770132817405,1.08157037,2311.5,2310.1,0.02158708]
[1770132817556,0.1024,2311.4,2309.8,0.02158708]
[1770132817756,1.98853277,2311.6,2310.0,0.02158708]
[1770132818071,1.98853277,2311.6,2309.7,1.10396497]
[1770132818072,0.02158708,2311.4,2309.7,1.08237336]
[1770132818267,0.02158708,2311.4,2309.4,0.02158708]
[1770132818579,0.1024,2311.5,2309.7,1.08238847]
[1770132818888,1.08164236,2311.3,2309.7,1.08238847]
[1770132819089,0.02158708,2311.1,2308.9,4.35258915]
[1770132819260,0.02158708,2310.4,2309.0,0.43957633]
[1770132819459,0.02158708,2310.5,2308.9,1.08275444]
[1770132819704,0.02158708,2310.6,2308.7,1.08281397]
[1770132819914,0.02158708,2310.1,2307.9,4.33291506]
[1770132820056,0.02158708,2310.1,2308.4,1.08296624]
[1770132820262,0.02158708,2310.0,2308.2,0.02158708]
[1770132820597,12.57488705,2310.4,2308.0,0.02158708]
[1770132820762,0.1024,2310.3,2308.3,0.02158708]
[1770132820959,1.08215738,2310.2,2308.4,0.02158708]
[1770132821298,0.02158708,2309.8,2307.1,0.02158708]
[1770132821463,0.1024,2310.1,2308.3,0.02158708]
[1770132821663,0.1024,2310.1,2308.4,0.02158708]
[1770132821994,0.02158708,2309.9,2308.0,0.02158708]
[1770132822163,0.02158708,2309.9,2307.5,0.02158708]
[1770132822164,0.02158708,2309.5,2307.8,1.08327714]
[1770132822500,0.02158708,2309.4,2307.4,0.02158708]
[1770132822660,0.02158708,2309.3,2307.6,4.33338057]
[1770132822860,1.08253225,2309.4,2307.5,4.33362596]
[1770132823068,1.10411933,2309.4,2307.6,0.54386367]
[1770132823272,0.02158708,2309.2,2307.4,1.08345351]
[1770132823474,0.02158708,2308.4,2306.3,0.02158708]
[1770132823695,0.02158708,2308.3,2306.3,0.02158708]
[1770132823893,1.08253225,2309.4,2307.7,0.02158708]
[1770132824108,1.08211054,2310.3,2308.2,0.02158708]
[1770132824310,4.34923759,2310.8,2308.5,0.02158708]
[1770132824607,4.34923759,2310.8,2308.7,0.02158708]
[1770132824806,0.02158708,2310.7,2308.3,0.02158708]
[1770132825010,4.34965378,2310.6,2308.5,1.10454137]
[1770132825183,1.10355713,2310.7,2308.6,0.56738164]
[1770132825505,0.02158708,2310.6,2308.7,0.02158708]
[1770132825727,1.08197005,2310.7,2308.7,0.02158708]
[1770132825916,1.08164236,2311.3,2309.3,0.02158708]
[1770132826104,0.0011,2311.5,2309.9,0.02158708]
[1770132826303,1.0826886,2311.5,2309.4,0.02158708]
[1770132826503,1.0826886,2311.5,2309.7,0.02158708]
[1770132827026,1.0826886,2311.5,2309.3,0.02158708]
[1770132827027,1.08215738,2310.2,2308.6,0.54579456]
[1770132827322,0.1024,2310.8,2309.0,0.02158708]
[1770132827528,0.908,2310.9,2309.0,0.02158708]
[1770132828022,0.92958708,2310.9,2309.0,0.02158708]
[1770132828225,1.10336985,2311.0,2309.0,0.02158708]
[1770132828428,0.02158708,2310.9,2308.6,13.61654802]
[1770132828730,0.02158708,2309.7,2307.5,0.02158708]
[1770132828893,0.92958708,2309.8,2307.8,0.02158708]
[1770132829229,0.02158708,2309.6,2307.5,0.02158708]
[1770132829403,0.02158708,2309.3,2307.3,0.02158708]
[1770132829743,0.02158708,2308.2,2305.8,12.5120597]
[1770132830028,0.02158708,2308.6,2306.3,1.08396085]
[1770132830029,0.02158708,2307.9,2306.3,1.08396085]
[1770132830233,0.02158708,2307.8,2306.3,1.08396266]
[1770132830532,0.02158708,2307.8,2306.4,1.62593924]
[1770132830735,0.908,2308.1,2306.4,1.62593969]
[1770132830949,12.57488705,2308.6,2306.4,1.62593969]
[1770132831156,0.12398708,2308.2,2306.4,0.54200837]
[1770132831316,0.02158708,2307.9,2305.8,0.02158708]
[1770132831642,0.02158708,2307.6,2305.8,4.33681852]
[1770132831956,0.02158708,2307.6,2304.5,0.02158708]
[1770132831957,0.02158708,2307.0,2304.5,0.02158708]
[1770132832115,0.02158708,2306.7,2305.2,1.08448923]
[1770132832431,0.02158708,2305.9,2304.9,0.001]
[1770132832600,0.02158708,2306.2,2304.9,0.001]
[1770132832794,0.02158708,2305.9,2304.9,0.001]
[1770132832998,4.33632539,2306.2,2304.9,0.001]
[1770132833210,0.02158708,2306.1,2304.9,0.001]
[1770132833411,0.12398708,2306.1,2304.3,1.08489523]
[1770132833637,4.33632539,2306.2,2304.4,0.02158708]
[1770132833844,0.02158708,2306.0,2303.9,1.17670579]
[1770132834039,0.02158708,2306.0,2303.8,0.02158708]
[1770132834040,7.74014782,2305.7,2303.8,0.02158708]
[1770132834209,0.1024,2305.6,2303.9,1.08511647]
[1770132834409,0.908,2305.5,2303.8,0.02158708]
[1770132834614,0.908,2305.8,2304.3,1.08490373]
[1770132834809,0.1024,2306.0,2304.5,0.02158708]
[1770132835010,4.33469815,2307.0,2305.1,0.001]
[1770132835215,0.12398708,2306.5,2304.5,1.10639492]
[1770132835410,0.1024,2306.5,2304.6,1.10636546]
[1770132835636,0.2335703,2306.4,2304.9,0.001]
[1770132835837,0.02158708,2306.3,2304.9,0.001]
[1770132836140,0.02158708,2305.9,2304.9,0.001]
[1770132836343,0.02158708,2306.2,2304.9,0.001]
[1770132836517,0.02158708,2306.1,2304.9,0.001]
[1770132836713,0.1024,2306.0,2304.9,0.001]
[1770132837115,0.1024,2305.8,2304.9,0.001]
[1770132837443,0.1024,2305.8,2303.9,1.0861147]
[1770132837444,0.02158708,2305.6,2303.9,1.0861147]
[1770132837619,0.02158708,2305.7,2303.9,0.001]
[1770132837810,0.02158708,2305.7,2303.9,1.08609102]
[1770132838013,0.02158708,2305.7,2304.0,1.08502786]
[1770132838218,0.1024,2305.8,2304.3,1.08490273]
[1770132838420,0.02158708,2305.8,2304.3,1.08492027]
[1770132838650,1.08417537,2305.9,2304.0,0.02158708]
[1770132838947,0.1024,2305.8,2304.3,1.08492717]
[1770132839147,1.08426941,2305.7,2304.1,1.10656234]
[1770132839446,1.08426941,2305.7,2304.1,1.10660301]
[1770132839618,1.08426941,2305.7,2304.2,0.54684603]
[1770132840221,0.02158708,2305.5,2303.9,0.001]
[1770132840528,0.909,2305.5,2303.9,0.001]
[1770132840723,0.02158708,2304.9,2303.7,0.001]
[1770132840979,0.02158708,2304.7,2303.7,0.001]
[1770132841176,0.02158708,2304.4,2302.6,1.0857025]
[1770132841325,1.57118995,2305.1,2303.3,0.02158708]
[1770132841653,0.02158708,2304.9,2302.8,0.02158708]
[1770132841848,0.02158708,2304.8,2302.8,0.02158708]
[1770132842069,0.02158708,2304.6,2302.7,0.54286794]
[1770132842223,0.02158708,2304.1,2302.0,0.1089268]
[1770132842419,0.02158708,2303.9,2302.3,1.0858596]
[1770132842648,0.02158708,2304.1,2302.0,0.1089268]
[1770132843023,1.39560518,2304.5,2302.5,4.3429167]
[1770132843024,1.08483402,2304.5,2302.5,4.3429167]
[1770132843251,1.08483402,2304.5,2302.2,0.02158708]
[1770132843252,0.12398708,2304.1,2302.2,1.08588838]
[1770132843451,0.02158708,2303.9,2302.0,0.1089268]
[1770132843654,0.02158708,2302.9,2302.0,0.0589268]
[1770132843863,0.02158708,2303.2,2300.9,0.02158708]
[1770132844077,0.93058708,2303.0,2301.4,1.08629066]
[1770132844228,0.02158708,2302.5,2300.9,1.08650165]
[1770132844551,19.57828081,2303.3,2301.2,0.02158708]
[1770132844759,1.0114,2303.2,2301.6,1.0861598]
[1770132845069,1.08516364,2303.8,2301.7,1.1076936]
[1770132845224,0.909,2303.4,2301.7,1.0861471]
[1770132845427,0.909,2303.4,2301.7,1.08614717]
[1770132845629,0.909,2303.4,2301.9,0.02158708]
[1770132846076,1.08492817,2304.3,2302.7,0.02158708]
[1770132846243,0.02158708,2304.6,2302.7,0.02158708]
[1770132846555,0.02158708,2304.0,2302.1,0.02158708]
[1770132846756,0.02158708,2303.7,2301.8,0.54309211]
[1770132846972,0.12398708,2304.2,2301.8,0.54309211]
[1770132846973,0.1024,2304.2,2302.3,0.02158708]
[1770132847257,0.02158708,2303.8,2302.2,1.0858852]
[1770132847459,0.12398708,2304.0,2302.3,1.08585959]
[1770132847460,0.1024,2304.0,2302.3,1.08585959]
[1770132847659,0.02158708,2304.5,2302.3,1.08585959]
[1770132847660,1.08464575,2304.9,2302.9,0.02158708]
[1770132847856,0.02158708,2304.8,2302.9,0.02158708]
[1770132848047,0.02158708,2304.6,2302.8,0.02158708]
[1770132848262,0.02158708,2304.0,2302.2,0.54297046]
[1770132848438,0.93158708,2303.9,2302.3,1.08584423]
[1770132848764,0.02158708,2303.5,2301.8,0.54309211]
[1770132848955,0.02158708,2304.2,2302.3,1.08584893]
[1770132849134,0.02158708,2304.2,2301.9,0.02158708]
[1770132849135,1.08516364,2303.8,2302.1,1.08596498]
[1770132849336,0.02158708,2303.6,2302.0,1.08600635]
[1770132849566,1.08516364,2303.8,2302.8,0.001]
[1770132849771,0.1024,2303.7,2300.9,16.10184416]
[1770132850071,0.1024,2303.7,2301.8,0.001]
[1770132850072,0.02158708,2302.4,2301.8,0.001]
[1770132850268,0.02158708,2302.4,2300.3,0.02158708]
[1770132850269,0.91,2302.4,2300.3,0.02158708]
[1770132850573,0.91,2302.4,2301.2,1.08635135]
[1770132850745,7.76901231,2302.9,2301.5,1.08621672]
[1770132850746,0.91,2302.9,2301.5,1.08621672]
[1770132850950,0.02158708,2303.4,2301.5,1.08621672]
[1770132850951,11.85972007,2303.4,2301.5,0.54315261]
[1770132851178,1.08563487,2302.8,2300.9,1.08653135]
[1770132851340,1.08563487,2302.8,2301.1,0.02158708]
[1770132852076,1.08563487,2302.8,2301.0,0.02158708]
[1770132852077,0.1024,2302.7,2301.0,0.02158708]
[1770132852285,0.12398708,2302.7,2300.8,1.10815413]
[1770132852569,0.02158708,2302.5,2300.8,0.02158708]
[1770132852755,0.02158708,2302.1,2300.7,1.08660257]
[1770132852957,0.02158708,2302.5,2300.8,1.08657813]
[1770132853227,4.36412659,2303.0,2301.4,0.02158708]
[1770132853228,1.08563487,2302.8,2301.4,0.02158708]
[1770132853368,0.91,2303.2,2301.7,0.02158708]
[1770132853570,0.91,2303.2,2301.8,0.02158708]
[1770132853766,0.91,2303.2,2300.8,0.02158708]
[1770132854009,0.1024,2303.1,2300.9,4.88903693]
[1770132854302,0.12398708,2303.1,2301.2,0.54753588]
[1770132854480,1.08535208,2303.5,2301.7,0.02158708]
[1770132854796,1.08535208,2303.5,2301.4,0.02158708]
[1770132854797,0.02158708,2303.2,2301.4,0.02158708]
[1770132855099,1.0853992,2303.3,2301.7,0.02158708]
[1770132855592,0.91,2303.2,2301.6,1.10776675]
[1770132855800,0.91,2303.2,2301.7,1.10773154]
[1770132856172,1.9953992,2303.3,2301.7,1.1077397]
[1770132856365,0.02158708,2303.1,2301.1,4.34573945]
[1770132856587,0.1024,2303.2,2301.7,1.08614307]
[1770132856793,0.1024,2303.2,2301.8,0.02158708]
[1770132857289,1.08549346,2303.1,2302.2,0.02158708]
[1770132857768,1.08521074,2303.7,2302.2,0.02158708]
[1770132857998,1.99521074,2303.7,2302.2,0.02158708]
[1770132858217,1.99521074,2303.7,2302.3,0.02158708]
[1770132858380,1.08521074,2303.7,2302.5,0.02158708]
[1770132858582,7.76901231,2303.4,2300.8,16.10195199]
[1770132858800,0.91,2303.3,2302.1,0.02158708]
[1770132859101,1.08521074,2303.7,2302.0,0.02158708]
[1770132859268,0.1024,2303.8,2302.2,0.02158708]
[1770132859600,0.91,2303.9,2302.6,0.02158708]
[1770132859800,0.91,2303.9,2302.0,1.08599851]
[1770132860096,0.1024,2303.8,2302.2,0.02158708]
[1770132860295,0.91,2303.7,2302.3,0.02158708]
[1770132860799,0.91,2303.7,2301.9,4.36563573]
[1770132860800,12.89351665,2303.4,2301.4,0.02158708]
[1770132861102,0.1024,2303.1,2301.4,1.10787611]
[1770132861399,1.08525785,2303.6,2301.9,0.02158708]
[1770132861572,4.3413878,2303.5,2302.1,0.02158708]
[1770132862073,4.3413878,2303.5,2301.9,0.02158708]
[1770132862385,2.810837,2303.3,2301.4,1.08629367]
[1770132862578,0.12398708,2303.4,2301.5,0.02158708]
[1770132862773,0.12398708,2303.4,2301.6,0.02158708]
[1770132862997,4.36297488,2303.5,2302.0,0.02158708]
[1770132862998,4.3413878,2303.5,2302.0,0.02158708]
[1770132863232,1.0853992,2303.3,2302.1,0.02158708]
[1770132863517,1.0853992,2303.3,2301.4,1.10786082]
[1770132863518,0.1024,2303.2,2301.4,1.10786082]
[1770132863716,0.1024,2303.2,2301.5,1.08624431]
[1770132863717,0.12398708,2303.2,2301.5,1.08624431]
[1770132863918,1.0853992,2303.3,2302.3,0.02158708]
[1770132864214,1.08525785,2303.6,2302.5,0.02158708]
[1770132864384,1.95212095,2303.6,2302.0,0.02158708]
[1770132864589,1.08525785,2303.6,2302.1,1.08595794]
[1770132864790,1.08525785,2303.6,2302.1,1.10754502]
[1770132864985,0.91,2303.5,2302.1,1.10754502]
[1770132865190,0.91,2303.6,2302.2,1.10747935]
[1770132865418,0.91,2303.6,2302.3,0.54729146]
[1770132865612,0.91,2303.6,2302.2,1.10749372]
[1770132865815,0.91,2303.6,2301.9,1.10764256]
[1770132865989,0.91,2303.6,2302.0,1.10759417]
[1770132866191,0.91,2303.6,2302.0,1.10759544]
[1770132866391,0.91,2303.6,2302.0,1.10759863]
[1770132867114,0.91,2303.6,2302.0,0.02158708]
[1770132867323,1.08530497,2303.5,2302.0,0.02158708]
[1770132867523,0.12398708,2303.4,2301.3,0.93158708]
[1770132867707,1.0124,2303.4,2301.7,1.08612855]
[1770132867913,1.0124,2303.4,2301.6,0.02158708]
[1770132868115,1.0124,2303.4,2302.0,0.02158708]
[1770132868293,1.08530497,2303.5,2302.5,0.02158708]
[1770132868620,1.08530497,2303.5,2302.7,0.02158708]
[1770132868927,1.08530497,2303.5,2303.0,0.02158708]
[1770132869219,1.08530497,2303.5,2302.6,0.02158708]
[1770132869220,4.34121988,2303.6,2301.9,0.02158708]
[1770132869433,4.34121988,2303.6,2301.9,1.10762292]
[1770132869593,7.76901231,2303.0,2301.3,0.02158708]
[1770132869793,1.16643607,2302.7,2301.4,0.02158708]
[1770132870098,0.91,2302.6,2301.5,0.02158708]
[1770132870292,1.16643607,2302.7,2301.7,0.02158708]
[1770132870293,0.91,2302.7,2301.7,0.02158708]
[1770132870492,1.16643607,2302.8,2301.8,0.02158708]
[1770132870693,1.16643607,2303.6,2302.6,0.02158708]
[1770132870898,1.08630025,2303.8,2303.1,0.02158708]
[1770132871124,1.08630025,2303.8,2302.8,0.02158708]
[1770132871312,1.08630025,2303.8,2303.0,0.02158708]
[1770132871517,1.08630025,2303.8,2303.0,0.57085707]
[1770132871822,1.08630025,2303.8,2303.0,0.02158708]
[1770132872028,1.08630025,2303.8,2302.5,1.08576401]
[1770132872237,1.08630025,2303.8,2302.4,0.02158708]
[1770132872413,0.0011,2303.8,2303.1,0.02158708]
[1770132872598,0.0011,2303.8,2302.9,0.02158708]
[1770132872804,0.0011,2303.8,2302.8,1.08562261]
[1770132873010,0.0011,2303.8,2302.9,0.54281621]
[1770132873230,0.0011,2303.8,2302.5,0.02604958]
[1770132873536,1.16643607,2303.2,2301.8,1.08606375]
[1770132873840,1.16643607,2303.0,2301.5,1.08624235]
[1770132874059,2.07643607,2302.9,2301.2,1.08635399]
[1770132874333,1.16643607,2302.7,2301.2,1.08636423]
[1770132874626,1.16643607,2302.7,2301.4,1.08625931]
[1770132874932,1.16643607,2302.6,2301.0,4.37193617]
[1770132875133,1.16643607,2302.6,2300.7,5.51612595]
[1770132875134,1.16643607,2302.3,2300.7,1.0866258]
[1770132875336,1.08591781,2302.2,2300.6,4.37355281]
[1770132875563,2.25235388,2302.2,2300.6,1.11372262]
[1770132875924,2.25235388,2302.2,2301.3,0.001]
[1770132876110,1.08591781,2302.2,2301.3,0.001]
[1770132876310,0.91,2302.1,2301.3,0.001]
[1770132876743,1.19248565,2301.7,2300.6,0.001]
[1770132877046,1.16643607,2301.7,2300.6,0.001]
[1770132877230,0.91,2301.6,2300.6,0.001]
[1770132877436,1.08618599,2301.7,2300.6,0.001]
[1770132877825,4.34421853,2302.0,2300.6,0.02704958]
[1770132878047,1.16643607,2302.6,2301.6,0.02604958]
[1770132878268,3.08557233,2303.3,2302.2,0.02604958]
[1770132878269,1.16643607,2303.3,2302.2,0.02604958]
[1770132878424,0.0011,2303.8,2302.9,0.02604958]
[1770132878620,1.16564198,2304.5,2303.3,0.02604958]
[1770132878919,4.33954942,2305.0,2304.2,0.02604958]
[1770132878920,0.0011,2305.0,2304.2,0.02604958]
[1770132879125,2.25008219,2305.4,2303.3,1.1437026]
[1770132879379,0.1024,2305.0,2303.1,0.02604958]
[1770132879518,1.16564198,2304.6,2302.7,4.36876837]
[1770132879846,1.16564198,2304.6,2303.0,1.08553562]
[1770132880060,0.1024,2304.4,2302.9,0.02604958]
[1770132880222,1.16564198,2303.8,2301.5,5.51466818]
[1770132880422,1.43332645,2303.8,2302.4,1.08579741]
[1770132880652,0.91,2303.7,2302.3,1.0858441]
[1770132880826,0.91,2303.7,2302.2,1.08591738]
[1770132881026,0.91,2303.7,2302.3,1.08585208]
[1770132881230,1.08525785,2303.6,2302.2,4.34365095]
[1770132881433,1.08525785,2303.6,2302.2,1.08591781]
[1770132881635,1.08525785,2303.6,2302.3,0.54557831]
[1770132881833,1.08525785,2303.6,2302.1,1.08594849]
[1770132882037,1.08525785,2303.6,2302.1,1.11200687]
[1770132882240,1.99525785,2303.6,2302.2,0.02604958]
[1770132882434,1.99525785,2303.6,2302.0,1.11202026]
[1770132882653,1.08525785,2303.6,2302.1,1.08595253]
[1770132882852,1.08525785,2303.6,2302.2,0.54558621]
[1770132883059,1.99525785,2303.6,2302.2,0.54558621]
[1770132883353,1.08525785,2303.6,2302.2,0.54558621]
[1770132883531,1.08525785,2303.6,2301.8,0.02604958]
[1770132883532,1.16564198,2303.4,2301.7,1.08612812]
[1770132883735,1.16564198,2303.4,2302.0,1.08600839]
[1770132883931,1.16564198,2303.4,2301.7,1.08612315]
[1770132884144,1.16564198,2303.2,2301.6,1.08616892]
[1770132884335,1.43593141,2303.2,2301.6,4.34478485]
[1770132884646,1.16564198,2303.3,2301.7,0.02604958]
[1770132884961,1.08518962,2303.8,2302.6,0.02604958]
[1770132885282,1.08477777,2304.7,2303.3,1.0853992]
[1770132885428,1.08477777,2304.7,2303.6,0.02604958]
[1770132885628,1.08459869,2305.0,2303.6,0.02604958]
[1770132885962,1.08459869,2305.0,2303.4,0.57135414]
[1770132886459,1.08459869,2305.0,2303.5,0.02604958]
[1770132887031,1.16564198,2305.4,2303.8,0.02604958]
[1770132887235,4.33764205,2305.5,2304.1,0.02604958]
[1770132887442,4.33764205,2305.6,2304.1,1.66142719]
[1770132887841,0.1024,2305.5,2303.8,0.02604958]
[1770132888162,0.1024,2305.5,2303.3,0.93604958]
[1770132888163,0.02604958,2304.9,2303.3,0.91]
[1770132888341,0.02604958,2304.7,2302.7,11.8759442]
[1770132888547,0.02604958,2304.6,2303.2,1.08543902]
[1770132888732,0.02604958,2304.2,2302.5,1.08575191]
[1770132888933,0.02604958,2304.0,2302.2,0.93604958]
[1770132889166,0.02604958,2303.6,2301.9,1.08601719]
[1770132889338,1.08535208,2303.4,2301.8,1.08610652]
[1770132889534,1.08535208,2303.4,2301.9,0.54565822]
[1770132889738,1.99535208,2303.4,2301.9,0.54565822]
[1770132890281,0.02604958,2303.1,2301.6,1.08616981]
[1770132890480,0.93604958,2303.3,2301.7,1.08615001]
[1770132890774,0.02604958,2303.2,2301.6,1.08616914]
[1770132890932,0.02604958,2303.2,2301.5,1.08621399]
[1770132891133,0.91,2303.1,2301.7,1.08614975]
[1770132891333,1.11159017,2303.0,2301.4,1.08728925]
[1770132891559,1.08554059,2303.0,2301.4,1.08728925]
[1770132892361,0.02604958,2302.9,2301.4,0.001]
[1770132892562,0.02604958,2302.7,2301.4,0.001]
[1770132892755,1.16191242,2302.5,2301.4,0.001]
[1770132892954,0.02604958,2302.4,2301.4,0.001]
[1770132893160,1.187962,2302.4,2301.4,0.001]
[1770132893356,1.08587065,2302.3,2301.4,0.001]
[1770132893561,0.91,2302.2,2301.4,0.001]
[1770132893870,0.02604958,2302.1,2300.6,0.001]
[1770132894176,1.16191242,2302.0,2300.6,0.001]
[1770132894350,1.187962,2301.8,2300.6,0.001]
[1770132894556,0.02604958,2301.8,2300.6,0.001]
[1770132894853,0.1024,2301.6,2300.6,0.001]
[1770132895346,1.08624809,2301.5,2300.6,0.001]
[1770132895550,1.99624809,2301.5,2300.6,0.001]
[1770132895749,1.08624809,2301.5,2300.6,0.001]
[1770132895939,0.91,2301.4,2300.6,0.001]
[1770132896890,1.08624809,2301.5,2300.6,0.001]
[1770132897174,1.08605934,2301.9,2300.6,0.001]
[1770132897344,1.08605934,2301.9,2300.6,1.08767304]
[1770132897938,1.08591781,2302.2,2300.6,1.11372262]
[1770132898142,1.08591781,2302.2,2300.7,0.02604958]
[1770132898576,1.08591781,2302.2,2300.8,0.02604958]
[1770132898751,1.08591781,2302.2,2300.9,0.02604958]
[1770132899271,1.08591781,2302.2,2300.6,1.11372262]
[1770132899574,1.3842997,2302.5,2300.9,0.02604958]
[1770132899873,1.3842997,2302.5,2300.6,1.08767304]
[1770132899874,0.12844958,2302.4,2300.6,1.08767304]
[1770132900046,0.02604958,2302.3,2300.6,0.001]
[1770132900372,12.95955505,2302.2,2300.6,0.001]
[1770132900577,1.16135837,2302.4,2300.6,0.001]
[1770132900781,1.38429092,2302.5,2300.9,0.02604958]
[1770132900982,13.03590547,2302.3,2300.6,0.001]
[1770132901294,13.06195505,2301.9,2300.2,0.02126851]
[1770132901498,1.08610652,2301.8,2300.3,1.08681335]
[1770132901645,1.08610652,2301.8,2300.2,1.10809674]
[1770132901846,0.911,2301.7,2300.2,0.02126851]
[1770132902052,0.02604958,2300.9,2299.4,1.08820513]
[1770132902248,0.02604958,2300.4,2299.4,0.001]
[1770132903079,0.12844958,2300.7,2299.4,0.001]
[1770132903377,1.08667304,2300.6,2299.4,0.001]
[1770132903543,0.02604958,2300.3,2299.4,0.001]
[1770132903749,0.02604958,2300.0,2298.3,0.001]
[1770132903983,0.02604958,2300.0,2298.3,1.08873611]
[1770132904281,1.08667304,2300.6,2299.0,0.02604958]
[1770132904508,4.34614584,2300.9,2299.5,0.02604958]
[1770132904785,13.87055505,2300.7,2298.5,0.02604958]
[1770132904952,0.02604958,2300.3,2298.4,1.08770558]
[1770132905149,8.93037068,2300.8,2298.7,1.08752839]
[1770132905365,2.63574792,2301.0,2299.2,1.1133843]
[1770132905366,1.08653135,2301.0,2299.2,1.1133843]
[1770132905573,0.911,2300.9,2299.3,0.02604958]
[1770132905798,0.12844958,2300.8,2298.9,1.11348922]
[1770132905964,0.12844958,2300.8,2299.1,1.08735761]
[1770132905965,0.1024,2300.8,2299.1,1.08735761]
[1770132906286,0.12844958,2300.8,2298.9,0.02604958]
[1770132906491,0.12844958,2300.8,2298.7,1.08756023]
[1770132906492,0.12844958,2300.4,2298.7,1.08756023]
[1770132906796,0.02604958,2299.9,2298.4,1.08771213]
[1770132907005,0.02604958,2299.9,2298.3,0.001]
[1770132907006,0.911,2299.8,2298.3,0.001]
[1770132907162,0.02604958,2299.6,2298.3,0.001]
[1770132907362,1.11324244,2299.5,2298.3,0.001]
[1770132907694,0.02604958,2299.4,2298.3,0.001]
[1770132907893,0.911,2299.3,2298.3,0.001]
[1770132908066,1.08719286,2299.5,2298.3,0.001]
[1770132908479,1.08719286,2299.5,2297.6,4.37822784]
[1770132908480,0.02604958,2299.2,2297.5,0.1089268]
[1770132908679,0.02604958,2299.2,2296.6,12.70179513]
[1770132908680,28.117629,2297.8,2295.8,0.22744142]
[1770132908980,7.76901231,2296.9,2295.8,1.08892021]
[1770132909286,0.1024,2297.2,2295.8,1.08894188]
[1770132909501,13.03590547,2296.8,2295.0,0.09020693]
[1770132909701,2.0535,2296.9,2295.0,1.17950705]
[1770132909702,12.93350547,2296.6,2295.0,1.17950705]
[1770132909906,12.93350547,2296.6,2295.0,1.17950298]
[1770132910217,1.08828138,2297.2,2295.2,0.02604958]
[1770132910396,17.28663101,2297.3,2295.2,0.02604958]
[1770132910397,1.0882344,2297.3,2295.5,0.02604958]
[1770132910577,1.0882344,2297.3,2295.3,0.02604958]
[1770132910578,1.08827651,2297.3,2295.3,0.02604958]
[1770132910783,4.35262886,2297.5,2295.5,0.02604958]
[1770132910979,17.28426586,2298.5,2296.1,0.02604958]
[1770132911207,0.911,2298.3,2296.8,0.02604958]
[1770132911403,1.08780784,2298.2,2296.8,0.02604958]
[1770132911577,1.74032969,2298.2,2296.7,1.08851679]
[1770132911775,1.74032969,2298.2,2296.4,0.02604958]
[1770132912026,0.912,2298.1,2296.4,4.38063956]
[1770132912214,0.26523297,2298.0,2296.8,1.08845986]
[1770132912382,7.80289385,2298.7,2296.8,1.08845986]
[1770132912383,1.74018771,2298.6,2297.1,0.02604958]
[1770132912582,4.35066401,2298.5,2297.0,0.02604958]
[1770132913006,4.35066401,2298.5,2297.2,0.02604958]
[1770132913190,1.08742931,2299.0,2297.9,0.02604958]
[1770132913417,12.93350547,2299.2,2296.0,12.67574555]
[1770132913634,12.93350547,2299.2,2297.3,1.08822602]